[Event "Late-Titled-Tuesday-Blitz-May-07-2024"]
[Site "Chess.com"]
[Date "2024.05.07"]
[Round "3"]
[White "The_Machine04"]
[Black "mishanick"]
[Result "0-1"]
[WhiteElo "2779"]
[BlackElo "3048"]
[TimeControl "180+1"]
[EndTime "14:27:52 PDT"]
[Termination "mishanick won by checkmate"]

1. d4 {[%clk 0:03:00.9]} 1... Nf6 {[%clk 0:02:59.3]} 2. Nf3 {[%clk 0:03:00.2]}
2... d5 {[%clk 0:02:59]} 3. Nbd2 {[%clk 0:03:00.2]} 3... Bf5 {[%clk 0:02:56.3]}
4. e3 {[%clk 0:03:00.3]} 4... c6 {[%clk 0:02:56.6]} 5. Ne5 {[%clk 0:02:54.6]}
5... h5 {[%clk 0:02:40.6]} 6. Bd3 {[%clk 0:02:45.3]} 6... e6 {[%clk 0:02:39.1]}
7. Bxf5 {[%clk 0:02:38.1]} 7... exf5 {[%clk 0:02:39]} 8. c4 {[%clk 0:02:39]}
8... Nbd7 {[%clk 0:02:34.5]} 9. cxd5 {[%clk 0:02:37]} 9... cxd5 {[%clk 0:02:34]}
10. Qb3 {[%clk 0:02:34]} 10... Qb6 {[%clk 0:02:31.8]} 11. Nxd7 {[%clk 0:02:30]}
11... Kxd7 {[%clk 0:02:27.9]} 12. Qxb6 {[%clk 0:02:19.4]} 12... axb6 {[%clk
0:02:27.8]} 13. Nf3 {[%clk 0:02:20.1]} 13... Bd6 {[%clk 0:02:25.8]} 14. Bd2
{[%clk 0:02:19.7]} 14... Ne4 {[%clk 0:02:25.5]} 15. Ke2 {[%clk 0:02:19]} 15...
g5 {[%clk 0:02:23.6]} 16. h4 {[%clk 0:02:03.7]} 16... g4 {[%clk 0:02:22.7]} 17.
Ne1 {[%clk 0:02:03.7]} 17... f4 {[%clk 0:02:11.2]} 18. exf4 {[%clk 0:01:55.6]}
18... Nxd2 {[%clk 0:02:05.7]} 19. Kxd2 {[%clk 0:01:53.3]} 19... Bxf4+ {[%clk
0:02:06.3]} 20. Kd1 {[%clk 0:01:29.7]} 20... Rhe8 {[%clk 0:02:05.1]} 21. g3
{[%clk 0:01:29.4]} 21... Bh6 {[%clk 0:02:03.4]} 22. Nc2 {[%clk 0:01:24.9]} 22...
Re4 {[%clk 0:02:01.5]} 23. Re1 {[%clk 0:01:23.5]} 23... f5 {[%clk 0:02:01.1]}
24. Rxe4 {[%clk 0:01:21.8]} 24... fxe4 {[%clk 0:01:57.6]} 25. Ne3 {[%clk
0:01:20.5]} 25... Ra4 {[%clk 0:01:22.1]} 26. Nc2 {[%clk 0:01:19.9]} 26... Rc4
{[%clk 0:01:20.3]} 27. b3 {[%clk 0:01:09.7]} 27... Rc3 {[%clk 0:01:19.9]} 28.
Nb4 {[%clk 0:01:09.3]} 28... Kd6 {[%clk 0:01:16.7]} 29. Ke2 {[%clk 0:00:51.6]}
29... Ke6 {[%clk 0:01:01.2]} 30. Rb1 {[%clk 0:00:50.4]} 30... Bg7 {[%clk
0:00:55.5]} 31. Rb2 {[%clk 0:00:28.1]} 31... Bxd4 {[%clk 0:00:48.3]} 32. Rd2
{[%clk 0:00:28.2]} 32... Ke5 {[%clk 0:00:48.3]} 33. Rd1 {[%clk 0:00:16.4]} 33...
Rf3 {[%clk 0:00:44.6]} 34. Rf1 {[%clk 0:00:14.7]} 34... Bc5 {[%clk 0:00:44.5]}
35. Nc2 {[%clk 0:00:14.7]} 35... d4 {[%clk 0:00:45.2]} 36. Ne1 {[%clk 0:00:15]}
36... d3+ {[%clk 0:00:45.6]} 37. Kd1 {[%clk 0:00:14.9]} 37... Rxf2 {[%clk
0:00:45.8]} 38. Rxf2 {[%clk 0:00:15]} 38... Bxf2 {[%clk 0:00:46.7]} 39. b4
{[%clk 0:00:15.1]} 39... Bxe1 {[%clk 0:00:45.6]} 40. Kxe1 {[%clk 0:00:16]} 40...
e3 {[%clk 0:00:46]} 41. b5 {[%clk 0:00:16.9]} 41... Kd4 {[%clk 0:00:46.3]} 42.
a4 {[%clk 0:00:17.8]} 42... Kc3 {[%clk 0:00:46.8]} 43. a5 {[%clk 0:00:18.7]}
43... bxa5 {[%clk 0:00:45.6]} 44. b6 {[%clk 0:00:19.6]} 44... a4 {[%clk
0:00:46]} 45. Kf1 {[%clk 0:00:19.7]} 45... a3 {[%clk 0:00:46.1]} 46. Kg2 {[%clk
0:00:20.6]} 46... a2 {[%clk 0:00:46.8]} 47. Kh2 {[%clk 0:00:21.5]} 47... a1=Q
{[%clk 0:00:47.4]} 48. Kg2 {[%clk 0:00:22.4]} 48... d2 {[%clk 0:00:47.5]} 49.
Kh2 {[%clk 0:00:23.3]} 49... d1=Q {[%clk 0:00:47.9]} 50. Kg2 {[%clk 0:00:24]}
50... Qd2# {[%clk 0:00:48.6]} 0-1

[Event "Late-Titled-Tuesday-Blitz-May-07-2024"]
[Site "Chess.com"]
[Date "2024.05.07"]
[Round "3"]
[White "ozates"]
[Black "sergiochess83"]
[Result "0-1"]
[WhiteElo "2653"]
[BlackElo "2886"]
[TimeControl "180+1"]
[EndTime "14:27:52 PDT"]
[Termination "sergiochess83 won by resignation"]

1. e4 {[%clk 0:03:00.9]} 1... e6 {[%clk 0:02:57]} 2. d4 {[%clk 0:03:00.2]} 2...
d5 {[%clk 0:02:57.2]} 3. e5 {[%clk 0:02:58.3]} 3... c5 {[%clk 0:02:56.9]} 4. c3
{[%clk 0:02:59]} 4... Nc6 {[%clk 0:02:57.6]} 5. Nf3 {[%clk 0:02:59.6]} 5... Bd7
{[%clk 0:02:58.3]} 6. Be2 {[%clk 0:02:59]} 6... Nge7 {[%clk 0:02:55.1]} 7. Na3
{[%clk 0:02:58]} 7... Ng6 {[%clk 0:02:54.8]} 8. Nc2 {[%clk 0:02:55.8]} 8... Be7
{[%clk 0:02:53.4]} 9. g3 {[%clk 0:02:54.2]} 9... O-O {[%clk 0:02:52.7]} 10. h4
{[%clk 0:02:54.2]} 10... cxd4 {[%clk 0:02:53.2]} 11. cxd4 {[%clk 0:02:54.1]}
11... f6 {[%clk 0:02:53.9]} 12. h5 {[%clk 0:02:53.9]} 12... Nh8 {[%clk
0:02:54.3]} 13. h6 {[%clk 0:02:54.5]} 13... g6 {[%clk 0:02:54.2]} 14. Bf4 {[%clk
0:02:54.1]} 14... Nf7 {[%clk 0:02:44.2]} 15. exf6 {[%clk 0:02:52]} 15... Bxf6
{[%clk 0:02:45.1]} 16. Ne3 {[%clk 0:02:52.2]} 16... g5 {[%clk 0:02:42]} 17. Be5
{[%clk 0:02:36.8]} 17... Nfxe5 {[%clk 0:02:41.5]} 18. dxe5 {[%clk 0:02:36.2]}
18... Nxe5 {[%clk 0:02:42.4]} 19. Nxe5 {[%clk 0:02:36.3]} 19... Bxe5 {[%clk
0:02:43.3]} 20. Ng4 {[%clk 0:02:35.4]} 20... Bxb2 {[%clk 0:02:29.2]} 21. Rb1
{[%clk 0:02:34]} 21... Bc3+ {[%clk 0:02:28]} 22. Kf1 {[%clk 0:02:33.7]} 22...
Bc6 {[%clk 0:02:28.7]} 23. Qc1 {[%clk 0:02:10.8]} 23... Bf6 {[%clk 0:02:17.8]}
24. Rh5 {[%clk 0:02:08.7]} 24... Kh8 {[%clk 0:02:17.5]} 25. Bd3 {[%clk
0:02:00.8]} 25... e5 {[%clk 0:02:15]} 26. Bf5 {[%clk 0:01:51]} 26... e4 {[%clk
0:02:13.4]} 27. Nxf6 {[%clk 0:01:47.7]} 27... Qxf6 {[%clk 0:02:12.3]} 28. Qxg5
{[%clk 0:01:44.2]} 28... Qxg5 {[%clk 0:01:54.6]} 29. Rxg5 {[%clk 0:01:42.8]}
29... Rae8 {[%clk 0:01:55.5]} 30. g4 {[%clk 0:01:38.5]} 30... Rf6 {[%clk
0:01:49.6]} 31. Rh5 {[%clk 0:01:32.1]} 31... d4 {[%clk 0:01:43.9]} 32. Rd1
{[%clk 0:01:30.9]} 32... d3 {[%clk 0:01:40.2]} 33. Rh3 {[%clk 0:01:30.8]} 33...
Re5 {[%clk 0:01:32.1]} 34. f3 {[%clk 0:00:53.6]} 34... Rfxf5 {[%clk 0:01:18.3]}
35. gxf5 {[%clk 0:00:50.8]} 35... e3 {[%clk 0:01:18.9]} 36. Rxd3 {[%clk
0:00:03.5]} 36... Bb5 {[%clk 0:01:18.3]} 37. f4 {[%clk 0:00:03.7]} 37... Bxd3+
{[%clk 0:01:17.6]} 38. Ke1 {[%clk 0:00:04.1]} 38... Re4 {[%clk 0:00:58.3]} 39.
f6 {[%clk 0:00:03.7]} 39... Kg8 {[%clk 0:00:54.5]} 40. Rg3+ {[%clk 0:00:03.2]}
40... Kf7 {[%clk 0:00:54.9]} 41. Rg7+ {[%clk 0:00:03.8]} 41... Kxf6 {[%clk
0:00:55.3]} 42. Rxh7 {[%clk 0:00:04]} 42... Rxf4 {[%clk 0:00:55.6]} 0-1

[Event "Late-Titled-Tuesday-Blitz-May-07-2024"]
[Site "Chess.com"]
[Date "2024.05.07"]
[Round "3"]
[White "manitodeplomo"]
[Black "KorolDimitriy75"]
[Result "1-0"]
[WhiteElo "2606"]
[BlackElo "2392"]
[TimeControl "180+1"]
[EndTime "14:27:53 PDT"]
[Termination "manitodeplomo won by checkmate"]

1. d4 {[%clk 0:03:00.9]} 1... Nf6 {[%clk 0:02:59.7]} 2. c4 {[%clk 0:02:58.6]}
2... c5 {[%clk 0:02:59.7]} 3. d5 {[%clk 0:02:58.4]} 3... b5 {[%clk 0:02:59.9]}
4. Qc2 {[%clk 0:02:57.7]} 4... bxc4 {[%clk 0:02:59.8]} 5. e4 {[%clk 0:02:55.4]}
5... d6 {[%clk 0:02:59.8]} 6. Bxc4 {[%clk 0:02:55.8]} 6... g6 {[%clk 0:03:00.4]}
7. Nc3 {[%clk 0:02:56.4]} 7... Bg7 {[%clk 0:03:01.2]} 8. Nf3 {[%clk 0:02:56.9]}
8... O-O {[%clk 0:03:01.9]} 9. O-O {[%clk 0:02:57.3]} 9... Nbd7 {[%clk
0:03:02.5]} 10. h3 {[%clk 0:02:56.2]} 10... Nb6 {[%clk 0:03:02.5]} 11. Be2
{[%clk 0:02:56.7]} 11... e6 {[%clk 0:03:02.4]} 12. dxe6 {[%clk 0:02:57.3]} 12...
Bxe6 {[%clk 0:03:02]} 13. Rd1 {[%clk 0:02:57.8]} 13... d5 {[%clk 0:03:01.6]} 14.
exd5 {[%clk 0:02:57.2]} 14... Nfxd5 {[%clk 0:03:01.4]} 15. Nxd5 {[%clk
0:02:57.5]} 15... Bxd5 {[%clk 0:03:01.6]} 16. Qxc5 {[%clk 0:02:53.3]} 16... Rc8
{[%clk 0:02:56.8]} 17. Qa5 {[%clk 0:02:53]} 17... Qe7 {[%clk 0:02:40.5]} 18. Be3
{[%clk 0:02:51.6]} 18... Bxb2 {[%clk 0:02:35]} 19. Rab1 {[%clk 0:02:49.3]} 19...
Bc3 {[%clk 0:02:35.1]} 20. Qb5 {[%clk 0:02:41.2]} 20... Bxa2 {[%clk 0:02:26.8]}
21. Rbc1 {[%clk 0:02:41.3]} 21... Bg7 {[%clk 0:02:18.8]} 22. Bc5 {[%clk
0:02:36.5]} 22... Qc7 {[%clk 0:01:32.3]} 23. Ba3 {[%clk 0:02:20.9]} 23... Qf4
{[%clk 0:01:21.1]} 24. Bxf8 {[%clk 0:02:17.1]} 24... Rxc1 {[%clk 0:01:19.9]} 25.
Bxg7 {[%clk 0:02:09.4]} 25... Rxd1+ {[%clk 0:01:19.9]} 26. Bxd1 {[%clk
0:02:09.8]} 26... Kxg7 {[%clk 0:01:20.7]} 27. Qb2+ {[%clk 0:02:08]} 27... Qf6
{[%clk 0:01:10.7]} 28. Qxa2 {[%clk 0:02:07.6]} 28... Qe7 {[%clk 0:01:09.4]} 29.
Bb3 {[%clk 0:02:02.2]} 29... h6 {[%clk 0:01:08]} 30. g4 {[%clk 0:01:57.9]} 30...
Qe4 {[%clk 0:01:03.2]} 31. Kg2 {[%clk 0:01:53]} 31... Qe7 {[%clk 0:00:54.1]} 32.
Qa1+ {[%clk 0:01:45.2]} 32... Kh7 {[%clk 0:00:52.6]} 33. Qe5 {[%clk 0:01:40.8]}
33... Qb7 {[%clk 0:00:50.4]} 34. Qf6 {[%clk 0:01:35.2]} 34... a5 {[%clk
0:00:40.3]} 35. Bxf7 {[%clk 0:01:31.9]} 35... Qe4 {[%clk 0:00:31.8]} 36. Qxb6
{[%clk 0:01:29.3]} 36... a4 {[%clk 0:00:32.1]} 37. Qa7 {[%clk 0:01:28.4]} 37...
Kh8 {[%clk 0:00:30.5]} 38. Qb8+ {[%clk 0:01:23.6]} 38... Kg7 {[%clk 0:00:30.2]}
39. Qe5+ {[%clk 0:01:23.5]} 39... Qxe5 {[%clk 0:00:27.8]} 40. Nxe5 {[%clk
0:01:24.4]} 40... Kf6 {[%clk 0:00:27.6]} 41. f4 {[%clk 0:01:25]} 41... g5 {[%clk
0:00:28]} 42. Kg3 {[%clk 0:01:25.4]} 42... a3 {[%clk 0:00:24.5]} 43. Ba2 {[%clk
0:01:24.3]} 43... gxf4+ {[%clk 0:00:17.3]} 44. Kxf4 {[%clk 0:01:25.2]} 44... Kg7
{[%clk 0:00:17.4]} 45. h4 {[%clk 0:01:24.6]} 45... Kf6 {[%clk 0:00:17.6]} 46. h5
{[%clk 0:01:22.3]} 46... Kg7 {[%clk 0:00:17]} 47. Nc4 {[%clk 0:01:22.9]} 47...
Kf6 {[%clk 0:00:16.3]} 48. Nxa3 {[%clk 0:01:23.4]} 48... Kg7 {[%clk 0:00:16.4]}
49. Nc4 {[%clk 0:01:23.5]} 49... Kf6 {[%clk 0:00:16.7]} 50. Bb3 {[%clk
0:01:22.3]} 50... Kg7 {[%clk 0:00:16.8]} 51. Bd1 {[%clk 0:01:22.9]} 51... Kf6
{[%clk 0:00:17.1]} 52. Bf3 {[%clk 0:01:23.5]} 52... Kg7 {[%clk 0:00:17.5]} 53.
Bh1 {[%clk 0:01:24]} 53... Kf6 {[%clk 0:00:17.9]} 54. Ne3 {[%clk 0:01:24.7]}
54... Kg7 {[%clk 0:00:18.3]} 55. Nf5+ {[%clk 0:01:25.3]} 55... Kh7 {[%clk
0:00:18.6]} 56. Ke5 {[%clk 0:01:25.8]} 56... Kh8 {[%clk 0:00:17.2]} 57. Nxh6
{[%clk 0:01:25.8]} 57... Kh7 {[%clk 0:00:17.6]} 58. Nf5 {[%clk 0:01:26.3]} 58...
Kh8 {[%clk 0:00:17.9]} 59. g5 {[%clk 0:01:26.7]} 59... Kh7 {[%clk 0:00:18.3]}
60. Kf6 {[%clk 0:01:27]} 60... Kh8 {[%clk 0:00:17.9]} 61. g6 {[%clk 0:01:26.9]}
61... Kg8 {[%clk 0:00:18]} 62. Bd5+ {[%clk 0:01:26.7]} 62... Kh8 {[%clk
0:00:17.9]} 63. g7+ {[%clk 0:01:27]} 63... Kh7 {[%clk 0:00:17.4]} 64. g8=Q#
{[%clk 0:01:27.2]} 1-0

[Event "Late-Titled-Tuesday-Blitz-May-07-2024"]
[Site "Chess.com"]
[Date "2024.05.07"]
[Round "3"]
[White "Iball95"]
[Black "ATM622"]
[Result "1-0"]
[WhiteElo "2889"]
[BlackElo "2520"]
[TimeControl "180+1"]
[EndTime "14:27:55 PDT"]
[Termination "Iball95 won by checkmate"]

1. e4 {[%clk 0:02:59.2]} 1... c6 {[%clk 0:02:56.5]} 2. d4 {[%clk 0:02:59.5]}
2... d5 {[%clk 0:02:56.4]} 3. exd5 {[%clk 0:03:00.4]} 3... cxd5 {[%clk
0:02:56.5]} 4. c4 {[%clk 0:03:01.3]} 4... dxc4 {[%clk 0:02:55.9]} 5. Nc3 {[%clk
0:03:00.6]} 5... Nf6 {[%clk 0:02:55.7]} 6. Bxc4 {[%clk 0:03:00.9]} 6... e6
{[%clk 0:02:53.7]} 7. Nf3 {[%clk 0:03:01]} 7... Nc6 {[%clk 0:02:54]} 8. O-O
{[%clk 0:03:00.4]} 8... Be7 {[%clk 0:02:53.8]} 9. Bg5 {[%clk 0:03:00.5]} 9...
O-O {[%clk 0:02:53.7]} 10. Re1 {[%clk 0:03:01]} 10... a6 {[%clk 0:02:50.8]} 11.
a4 {[%clk 0:02:59.7]} 11... Rb8 {[%clk 0:02:47.5]} 12. Bb3 {[%clk 0:02:53.7]}
12... b5 {[%clk 0:02:46.4]} 13. axb5 {[%clk 0:02:54.6]} 13... axb5 {[%clk
0:02:46.3]} 14. Qd3 {[%clk 0:02:43]} 14... b4 {[%clk 0:02:18.4]} 15. Ne2 {[%clk
0:02:27.3]} 15... h6 {[%clk 0:02:10.4]} 16. Bh4 {[%clk 0:02:27.1]} 16... Nd5
{[%clk 0:02:07]} 17. Bc2 {[%clk 0:02:09.8]} 17... f5 {[%clk 0:01:55.7]} 18. Bxe7
{[%clk 0:02:09.8]} 18... Ncxe7 {[%clk 0:01:46.9]} 19. Ne5 {[%clk 0:02:10.2]}
19... Qb6 {[%clk 0:01:35]} 20. Bb3 {[%clk 0:02:07.4]} 20... Nc6 {[%clk
0:01:12.8]} 21. Bxd5 {[%clk 0:02:04.9]} 21... exd5 {[%clk 0:01:08.6]} 22. Rac1
{[%clk 0:01:54.2]} 22... Rf6 {[%clk 0:00:55]} 23. Qf3 {[%clk 0:01:43.1]} 23...
Ne7 {[%clk 0:00:49.4]} 24. h4 {[%clk 0:01:36]} 24... Be6 {[%clk 0:00:46]} 25.
Rc5 {[%clk 0:01:26.3]} 25... b3 {[%clk 0:00:30.8]} 26. Nf4 {[%clk 0:01:24.6]}
26... Qb4 {[%clk 0:00:27.6]} 27. Qe3 {[%clk 0:01:24.9]} 27... Re8 {[%clk
0:00:15.1]} 28. Ned3 {[%clk 0:01:24.8]} 28... Qb6 {[%clk 0:00:10.4]} 29. Nxe6
{[%clk 0:01:15.5]} 29... Ng6 {[%clk 0:00:10.1]} 30. Rxd5 {[%clk 0:01:07.1]}
30... Rfxe6 {[%clk 0:00:07.8]} 31. Ne5 {[%clk 0:01:07.6]} 31... Qb4 {[%clk
0:00:04.1]} 32. Rd7 {[%clk 0:01:03.6]} 32... Nxh4 {[%clk 0:00:01.7]} 33. Rc1
{[%clk 0:00:59.1]} 33... f4 {[%clk 0:00:01.8]} 34. Qh3 {[%clk 0:00:55.4]} 34...
g5 {[%clk 0:00:01.4]} 35. Rcc7 {[%clk 0:00:52.3]} 35... Qd2 {[%clk 0:00:01.5]}
36. Rg7+ {[%clk 0:00:51.5]} 36... Kh8 {[%clk 0:00:01.8]} 37. Rh7+ {[%clk
0:00:51.6]} 37... Kg8 {[%clk 0:00:02.1]} 38. Rcg7+ {[%clk 0:00:51.8]} 38... Kf8
{[%clk 0:00:02.5]} 39. Nd7# {[%clk 0:00:52.2]} 1-0

[Event "Late-Titled-Tuesday-Blitz-May-07-2024"]
[Site "Chess.com"]
[Date "2024.05.07"]
[Round "3"]
[White "FMOlexandrProhorov"]
[Black "JG-17"]
[Result "1/2-1/2"]
[WhiteElo "2309"]
[BlackElo "2569"]
[TimeControl "180+1"]
[EndTime "14:27:59 PDT"]
[Termination "Game drawn by repetition"]

1. e4 {[%clk 0:03:00.9]} 1... c5 {[%clk 0:02:39.9]} 2. c3 {[%clk 0:02:58.2]}
2... g6 {[%clk 0:02:34.8]} 3. d4 {[%clk 0:02:57.4]} 3... cxd4 {[%clk 0:02:35.7]}
4. cxd4 {[%clk 0:02:57.5]} 4... Bg7 {[%clk 0:02:36.2]} 5. Nc3 {[%clk 0:02:57.2]}
5... d6 {[%clk 0:02:35.9]} 6. Nf3 {[%clk 0:02:56.8]} 6... Nf6 {[%clk 0:02:36]}
7. h3 {[%clk 0:02:57.3]} 7... O-O {[%clk 0:02:36.5]} 8. Be3 {[%clk 0:02:49.9]}
8... Nc6 {[%clk 0:02:36.9]} 9. Be2 {[%clk 0:02:47.7]} 9... a6 {[%clk 0:02:37.4]}
10. Rc1 {[%clk 0:02:46.8]} 10... b5 {[%clk 0:02:37.9]} 11. d5 {[%clk 0:02:39.4]}
11... Na5 {[%clk 0:02:30.7]} 12. b3 {[%clk 0:02:33.5]} 12... Bd7 {[%clk
0:02:17.5]} 13. O-O {[%clk 0:02:32.8]} 13... b4 {[%clk 0:02:17.6]} 14. Na4
{[%clk 0:02:22.2]} 14... Bxa4 {[%clk 0:02:18]} 15. bxa4 {[%clk 0:02:22.1]} 15...
Nxe4 {[%clk 0:02:18.7]} 16. Bd4 {[%clk 0:02:03.5]} 16... Nc3 {[%clk 0:02:14.5]}
17. Qd2 {[%clk 0:01:54.2]} 17... Rc8 {[%clk 0:02:12.9]} 18. Bxg7 {[%clk
0:01:51.7]} 18... Kxg7 {[%clk 0:02:12.1]} 19. Bxa6 {[%clk 0:01:49.7]} 19... Rc5
{[%clk 0:02:09.1]} 20. Qd4+ {[%clk 0:01:46.3]} 20... Kg8 {[%clk 0:02:08.9]} 21.
Qxb4 {[%clk 0:01:44.9]} 21... Qc7 {[%clk 0:02:06.3]} 22. Qf4 {[%clk 0:00:50.8]}
22... Nxd5 {[%clk 0:02:02.4]} 23. Rxc5 {[%clk 0:00:47.9]} 23... Qxc5 {[%clk
0:02:03.3]} 24. Qh6 {[%clk 0:00:44.3]} 24... Nf6 {[%clk 0:01:54.7]} 25. Rc1
{[%clk 0:00:41.5]} 25... Qb6 {[%clk 0:01:49.9]} 26. Bb5 {[%clk 0:00:39]} 26...
Nb7 {[%clk 0:01:47.7]} 27. Qd2 {[%clk 0:00:30.5]} 27... Nc5 {[%clk 0:01:47.5]}
28. Nd4 {[%clk 0:00:27.9]} 28... Nce4 {[%clk 0:01:46.9]} 29. Qb2 {[%clk
0:00:23.4]} 29... e5 {[%clk 0:01:43.4]} 30. Nc6 {[%clk 0:00:20.2]} 30... Nd5
{[%clk 0:01:33.8]} 31. a5 {[%clk 0:00:19.8]} 31... Qc7 {[%clk 0:01:18.9]} 32. a6
{[%clk 0:00:12.8]} 32... Qb6 {[%clk 0:01:16.7]} 33. a4 {[%clk 0:00:11.8]} 33...
Nc7 {[%clk 0:01:06.3]} 34. Qe2 {[%clk 0:00:09.1]} 34... Nc5 {[%clk 0:01:01.5]}
35. Rd1 {[%clk 0:00:08.2]} 35... N7xa6 {[%clk 0:01:00.7]} 36. Rxd6 {[%clk
0:00:04]} 36... Qb7 {[%clk 0:01:01.2]} 37. Qxe5 {[%clk 0:00:01.6]} 37... Ra8
{[%clk 0:00:49.8]} 38. Ne7+ {[%clk 0:00:01.7]} 38... Kf8 {[%clk 0:00:47.7]} 39.
Qh8+ {[%clk 0:00:00.8]} 39... Kxe7 {[%clk 0:00:48.2]} 40. Qf6+ {[%clk
0:00:01.2]} 40... Kf8 {[%clk 0:00:47.8]} 41. Qh8+ {[%clk 0:00:01.1]} 41... Ke7
{[%clk 0:00:48.5]} 42. Qf6+ {[%clk 0:00:01.4]} 42... Kf8 {[%clk 0:00:49.4]} 43.
Qh8+ {[%clk 0:00:01.9]} 43... Ke7 {[%clk 0:00:49.1]} 1/2-1/2

[Event "Late-Titled-Tuesday-Blitz-May-07-2024"]
[Site "Chess.com"]
[Date "2024.05.07"]
[Round "3"]
[White "MeisterJabo"]
[Black "LUISMIGUELOV"]
[Result "0-1"]
[WhiteElo "2416"]
[BlackElo "2213"]
[TimeControl "180+1"]
[EndTime "14:28:01 PDT"]
[Termination "LUISMIGUELOV won by resignation"]

1. e4 {[%clk 0:03:00.9]} 1... d6 {[%clk 0:02:59.3]} 2. d4 {[%clk 0:02:55.2]}
2... c6 {[%clk 0:02:59.2]} 3. Nc3 {[%clk 0:02:50.6]} 3... g6 {[%clk 0:02:58.6]}
4. Be3 {[%clk 0:02:49.5]} 4... Nf6 {[%clk 0:02:58.5]} 5. Qd2 {[%clk 0:02:50.2]}
5... Ng4 {[%clk 0:02:57.8]} 6. Bf4 {[%clk 0:02:46.1]} 6... e5 {[%clk 0:02:30.3]}
7. dxe5 {[%clk 0:02:43.9]} 7... Nxe5 {[%clk 0:02:30]} 8. Bxe5 {[%clk 0:02:42.7]}
8... dxe5 {[%clk 0:02:29.4]} 9. Qxd8+ {[%clk 0:02:43.6]} 9... Kxd8 {[%clk
0:02:29.4]} 10. O-O-O+ {[%clk 0:02:44.5]} 10... Kc7 {[%clk 0:02:29]} 11. Bc4
{[%clk 0:02:31.4]} 11... f5 {[%clk 0:02:22.4]} 12. Nf3 {[%clk 0:02:27]} 12...
Bg7 {[%clk 0:02:15.7]} 13. Rhe1 {[%clk 0:02:22.5]} 13... b5 {[%clk 0:02:15.6]}
14. Bf7 {[%clk 0:01:33]} 14... Rf8 {[%clk 0:02:12.3]} 15. Ng5 {[%clk 0:01:32.9]}
15... Bh6 {[%clk 0:02:05.2]} 16. h4 {[%clk 0:01:08.9]} 16... Rxf7 {[%clk
0:02:02.1]} 17. exf5 {[%clk 0:01:06.9]} 17... Bxf5 {[%clk 0:01:58.1]} 18. Rxe5
{[%clk 0:01:05.4]} 18... Nd7 {[%clk 0:01:58.4]} 19. Re2 {[%clk 0:00:57.9]} 19...
b4 {[%clk 0:01:39]} 20. Na4 {[%clk 0:00:53.2]} 20... Nb6 {[%clk 0:01:38.1]} 21.
Nc5 {[%clk 0:00:52.6]} 21... Bxg5+ {[%clk 0:01:26.9]} 22. hxg5 {[%clk
0:00:51.3]} 22... a5 {[%clk 0:01:18.9]} 23. f3 {[%clk 0:00:47.5]} 23... Nd7
{[%clk 0:01:12.9]} 24. Nb3 {[%clk 0:00:43.4]} 24... a4 {[%clk 0:01:06.1]} 25.
Nd4 {[%clk 0:00:41.6]} 25... Nb6 {[%clk 0:01:04.6]} 26. Rde1 {[%clk 0:00:24.4]}
26... Rd8 {[%clk 0:01:03.7]} 27. Nxf5 {[%clk 0:00:12.8]} 27... Rxf5 {[%clk
0:00:59.1]} 28. Re7+ {[%clk 0:00:12.7]} 28... Rd7 {[%clk 0:00:59.1]} 29. Rxd7+
{[%clk 0:00:13.1]} 29... Nxd7 {[%clk 0:00:58.8]} 30. Re7 {[%clk 0:00:12.2]}
30... Rxg5 {[%clk 0:00:58.6]} 31. g4 {[%clk 0:00:12.8]} 31... h5 {[%clk
0:00:57.7]} 32. Re4 {[%clk 0:00:07.8]} 32... hxg4 {[%clk 0:00:54.6]} 33. fxg4
{[%clk 0:00:08.7]} 33... c5 {[%clk 0:00:54]} 34. c3 {[%clk 0:00:04.8]} 34... a3
{[%clk 0:00:49.8]} 35. cxb4 {[%clk 0:00:04.1]} 35... axb2+ {[%clk 0:00:48.5]}
36. Kxb2 {[%clk 0:00:05]} 36... Kc6 {[%clk 0:00:43.7]} 37. bxc5 {[%clk
0:00:01.6]} 37... Nxc5 {[%clk 0:00:43.8]} 38. Rc4 {[%clk 0:00:01.6]} 38... Kb5
{[%clk 0:00:42.7]} 39. Rf4 {[%clk 0:00:01.6]} 39... Nd3+ {[%clk 0:00:41.6]} 40.
Kc3 {[%clk 0:00:02.3]} 40... Nxf4 {[%clk 0:00:41.5]} 41. Kd4 {[%clk 0:00:03]}
41... Rxg4 {[%clk 0:00:41.6]} 0-1